fUSD/lending_fUSD_20240916
["ID","MTS","AMOUNT","RATE_DAILY","PERIOD"]
[338292726,1726482632337,-186.91,0.00013471,2]
[338292727,1726482632347,-1958.69,0.00013534,2]
[338292728,1726482632591,-2355.88744817,0.00013534,2]
[338292729,1726482632608,-5757.50445183,0.00013534,2]
[338292730,1726482632618,-200.0,0.00013548,2]
[338292731,1726482632628,-690.600222,0.00013548,2]
[338292732,1726482632639,-357.24,0.00013572,2]
[338292733,1726482632649,-452.12,0.00013595,2]
[338292734,1726482632658,-280.7650019,0.00013634,2]
[338292735,1726482632669,-189.04,0.00013658,2]
[338292736,1726482632679,-171.92,0.00013683,2]
[338292737,1726482632688,-150.0,0.00013699,2]
[338292738,1726482632699,-380.77,0.00013881,2]
[338292739,1726482632708,-8199.72105592,0.0001389,7]
[338292740,1726482638216,-2747.51243426,0.0001389,7]
[338292741,1726482638377,-3013.58673412,0.0001389,7]
[338292742,1726482638390,-31966.57925461,0.0001389,7]
[338292743,1726482638400,-1005.52751759,0.00014,4]
[338292744,1726482638410,-150.0,0.00014059,2]
[338292745,1726482638419,-533.22,0.00014192,2]
[338292746,1726482638429,-533.22,0.00014192,2]
[338292747,1726482638440,-264.63,0.00014192,2]
[338292748,1726482638450,-13483.0,0.00014302,2]
[338292749,1726482638461,-150.0,0.0001442,2]
[338292750,1726482638471,-1000.0,0.00014521,2]
[338292751,1726482638481,-150.0,0.00014646,2]
[338292752,1726482638491,-1681.09031,0.0001465,2]
[338292753,1726482638501,-386.07655609,0.00014664,2]
[338292754,1726482638511,-500.0,0.00014676,2]
[338292755,1726482638520,-200.0,0.00014676,2]
[338292756,1726482638530,-320.1144,0.00014694,2]
[338292757,1726482638540,-2647.5565,0.00014694,2]
[338292758,1726482638550,-220.60246218,0.00014694,2]
[338292759,1726482638559,-622.94520774,0.00014694,2]
[338292760,1726482638569,-36305.43519968,0.000147,2]
[338292761,1726482638580,-622.94520767,0.00014717,2]
[338292762,1726482638590,-150.0,0.00014728,2]
[338292763,1726482638599,-150.0,0.00014731,2]
[338292764,1726482638610,-420.0,0.00014734,2]
[338292765,1726482638620,-622.94520767,0.0001474,2]
[338292766,1726482638630,-714.157,0.0001476,2]
[338292767,1726482638639,-175.746,0.0001476,2]
[338292768,1726482638649,-622.94520767,0.00014763,2]
[338292769,1726482638659,-150.0,0.00014775,2]
[338292770,1726482638668,-164225.78389985,0.0001478,2]
[338292909,1726482640373,-9869.14526368,0.0001478,2]
[338293445,1726482646449,-690.600222,0.00013663,2]
[338293677,1726482687173,300.0,0.00012,2]
[338293678,1726482746115,362.98,0.00011875,2]
[338293679,1726482787677,2810.38,0.0001264,2]
[338293684,1726483240376,365.39,0.00011688,2]
[338293685,1726483319607,2017.0,0.00013,2]
[338293686,1726483406317,327.60821296,0.00012,2]
[338293688,1726483544770,176.18,0.00010959,2]
[338293695,1726483738865,366.66,0.00011633,2]
[338293709,1726483832313,-276.48415369,0.0001319,2]
[338293710,1726483832326,-276.216,0.0001319,2]
[338293711,1726483832455,-286.18192272,0.0001319,2]
[338293712,1726483832527,-5941.46,0.0001319,2]
[338293714,1726483840382,-480.15175657,0.0001319,2]
[338293715,1726483840393,-587.825172,0.0001319,2]
[338293716,1726483840405,-263.51,0.0001319,2]
[338293717,1726483840690,-663.25372651,0.0001319,2]
[338293718,1726483840700,-423.08,0.0001329,2]
[338293719,1726483840715,-150.0,0.0001329,2]
[338293720,1726483840724,-250.0,0.00013483,2]
[338293722,1726483840734,-392.41,0.00013487,2]
[338293723,1726483840744,-200.0,0.00013487,2]
[338293725,1726483840755,-4442.50627349,0.00013487,2]
[338294069,1726483846918,-104.85891306,0.00013487,2]
[338294562,1726484056670,152.51,0.00010959,2]
[338294563,1726484087914,1050.0,0.00011,2]
[338294565,1726484141307,5740.0,0.00011,3]
[338294568,1726484235317,390.07,0.00011653,2]
[338294571,1726484759771,391.66,0.00011557,2]
[338294574,1726485029339,150.0,0.00011441,2]
[338294584,1726485031549,-389.93125755,0.00013257,2]
[338294586,1726485031560,-150.0,0.0001329,2]
[338294587,1726485031571,-150.0,0.0001329,2]
[338294588,1726485031581,-2211.8119845,0.000133,2]
[338294589,1726485031591,-1137.31259983,0.0001335,2]
[338294590,1726485031604,-576.02,0.0001335,2]
[338294591,1726485031842,-119.92537017,0.0001335,2]
[338294592,1726485031852,-250.0,0.00013383,2]
[338294594,1726485031862,-76.2671624,0.00013383,2]
[338294605,1726485037552,-223.7328376,0.00013383,2]
[338294606,1726485037562,-1000.0,0.00013402,2]
[338294607,1726485037574,-250.0,0.00013445,2]
[338294609,1726485037584,-388.96,0.0001346,2]
[338294611,1726485037594,-9040.51632154,0.00013474,2]
[338294612,1726485037605,-302.37847502,0.00013474,2]
[338294613,1726485037616,-11524.53578708,0.00013474,2]
[338294614,1726485037718,-360.53268373,0.00013474,2]
[338294615,1726485037843,-804.984447,0.00013474,2]
[338294616,1726485037880,-324.58299937,0.00013474,2]
[338294617,1726485037891,-290.9489131,0.00013474,2]
[338294619,1726485039837,-153.86292,0.00013249,2]
[338294620,1726485039847,-1190.39269625,0.00013474,2]
[338294629,1726485044116,-31.12767691,0.00013474,2]
[338294630,1726485044126,-178.92,0.00013501,2]
[338294631,1726485044136,-117.25340313,0.00013508,2]
[338294634,1726485045738,-132.74659687,0.00013508,2]
[338294635,1726485045748,-504.52,0.00013508,2]
[338294636,1726485045758,-158.71,0.00013524,2]
[338294637,1726485045768,-169.6,0.00013527,2]
[338294638,1726485045778,-150.0,0.00013528,2]
[338294639,1726485045788,-966.92119643,0.00013529,2]
[338294640,1726485045800,-721.62621433,0.00013529,2]
[338294641,1726485121100,1200.0,0.00013,2]
[338294642,1726485127767,182.43,0.00010959,2]
[338294644,1726485263206,421.19,0.00011648,2]
[338294647,1726485634848,153.27,0.00010959,2]
[338294648,1726485727492,1015.0,0.00013,2]
[338294650,1726485740607,99.06657395,0.00013,2]
[338294651,1726485740632,923.18228705,0.00013,2]
[338294652,1726485764486,426.65,0.00011555,2]
[338294656,1726485890333,1050.0,0.00011,2]
[338294657,1726485910247,-1811.06948683,0.000163,120]
[338294658,1726485910337,-500.0,0.00018,120]
[338294659,1726485910444,-702.2108777,0.0002,120]
[338294660,1726485910526,-500.0,0.0002,120]
[338294661,1726485910629,-500.0,0.00022,120]
[338294662,1726485910714,-2000.0,0.00024,120]
[338294663,1726485910803,-500.0,0.000244,120]
[338294664,1726485910893,-500.0,0.00024842,120]
[338294665,1726485910983,-1500.0,0.00025,120]
[338294666,1726485911067,-632.97066973,0.00025,120]
[338294667,1726485911152,-241.802173,0.00025,120]
[338294668,1726485911234,-250.64618085,0.0002509,120]
[338294669,1726485911319,-500.0,0.00026,120]
[338294672,1726485929633,-500.0,0.00026033,120]
[338294673,1726485929710,-1679.4218234,0.00026137,120]
[338294674,1726485929787,-2000.0,0.00026553,120]
[338294675,1726485929864,-1703.51194963,0.000269,120]
[338294676,1726485929943,-800.0,0.00026986,120]
[338294677,1726485930019,-800.0,0.00026986,120]
[338294678,1726485930098,-800.0,0.00026986,120]
[338294679,1726485930172,-800.0,0.00026986,120]
[338294680,1726485930250,-800.0,0.00026986,120]
[338294681,1726485930324,-800.0,0.00026986,120]
[338294682,1726485930402,-800.0,0.00026986,120]
[338294683,1726485930477,-800.0,0.00026986,120]
[338294684,1726485930554,-645.86,0.00027,120]
[338294685,1726485930630,-2022.47077543,0.00027,120]
[338294686,1726485930704,-1007.70976611,0.00027,120]
[338294687,1726485931018,-1000.0,0.00027,120]
[338294688,1726485931108,-668.65294204,0.00027,120]
[338294689,1726485931184,-2003.82543462,0.00027,120]
[338294690,1726485931259,-946.53930811,0.00027,120]
[338294691,1726485931330,-2000.0,0.00027,120]
[338294692,1726485931400,-212.7112825,0.00027,120]
[338294693,1726485931473,-2026.0,0.00027,120]
[338294694,1726485931548,-500.0,0.00027001,120]
[338294695,1726485931621,-200.0,0.00027075,120]
[338294696,1726485931694,-500.0,0.00027225,120]
[338294697,1726485931767,-500.0,0.00027307,120]
[338294698,1726485931842,-1280.13082486,0.0002736,120]
[338294699,1726485931916,-510.0,0.00027397,120]
[338294700,1726485931986,-945.21,0.00027397,120]
[338294701,1726485932058,-945.21,0.00027397,120]
[338294702,1726485932132,-945.21,0.00027397,120]
[338294703,1726485932203,-945.21,0.00027397,120]
[338294704,1726485932273,-945.21,0.00027397,120]
[338294705,1726485932343,-945.21,0.00027397,120]
[338294706,1726485932420,-945.21,0.00027397,120]
[338294707,1726485932500,-945.21,0.00027397,120]
[338294708,1726485932575,-945.21,0.00027397,120]
[338294709,1726485932656,-945.21,0.00027397,120]
[338294710,1726485932739,-945.21,0.00027397,120]
[338294711,1726485932825,-945.21,0.00027397,120]
[338294712,1726485932902,-945.21,0.00027397,120]
[338294713,1726485932979,-945.21,0.00027397,120]
[338294714,1726485933057,-945.21,0.00027397,120]
[338294715,1726485933136,-945.21,0.00027397,120]
[338294716,1726485933215,-945.21,0.00027397,120]
[338294717,1726485933288,-945.21,0.00027397,120]
[338294718,1726485933367,-945.21,0.00027397,120]
[338294719,1726485933444,-945.21,0.00027397,120]
[338294720,1726485933519,-945.21,0.00027397,120]
[338294721,1726485933595,-945.21,0.00027397,120]
[338294722,1726485933671,-945.21,0.00027397,120]
[338294723,1726485933749,-945.43522185,0.00027397,120]
[338294724,1726485933828,-510.0,0.00027671,120]
[338294725,1726485933906,-510.0,0.00027945,120]
[338294726,1726485933986,-1214.740646,0.0002799,120]
[338294727,1726485934067,-1000.0,0.00028,120]
[338294728,1726485934957,229.43358764,0.0001,2]
[338294729,1726485942493,510.0,0.00027397,120]
[338294730,1726485942755,510.0,0.00027671,120]
[338294731,1726485943011,510.0,0.00027945,120]
[338294732,1726485962438,160.91577918,9e-05,2]
[338295274,1726486088523,500.0,0.00028,120]
[338295275,1726486091031,10883.58150103,0.000109,2]
[338295374,1726486116760,360.46102191,0.0002736,120]
[338295398,1726486120199,696.15527677,0.00027,120]
[338295445,1726486127101,500.0,0.00028,120]
[338295473,1726486132451,500.0,0.00028,120]
[338295512,1726486137496,500.0,0.00028,120]
[338295561,1726486141733,500.0,0.00028,120]
[338295578,1726486147342,500.0,0.00028,120]
[338295579,1726486160191,500.0,0.00028,120]
[338295619,1726486166490,500.0,0.00028,120]
[338295641,1726486171754,500.0,0.00028,120]
[338295775,1726486216952,500.0,0.00028,120]
[338295776,1726486226937,500.0,0.00028,120]
[338295786,1726486231713,-150.0,0.0001329,2]
[338295787,1726486231723,-150.0,0.0001329,2]
[338295788,1726486231733,-250.0,0.00013384,2]
[338295789,1726486231743,-53.03497768,0.00013392,2]
[338295790,1726486231766,-377.277724,0.00013392,2]
[338295791,1726486231823,-369.68729832,0.00013392,2]
[338295792,1726486231832,-250.0,0.00013406,2]
[338295793,1726486231842,-69.61511576,0.00013407,2]
[338295794,1726486231853,-344.19142609,0.00013407,2]
[338295795,1726486231879,-446.76535382,0.00013407,2]
[338295796,1726486231891,-4982.10222132,0.00013407,2]
[338295797,1726486231900,-421.72536693,0.00013413,2]
[338295798,1726486231910,-304.9805,0.00013418,2]
[338295799,1726486231919,-183.17,0.00013431,2]
[338295800,1726486231929,-480.87,0.0001346,2]
[338295801,1726486231938,-300.0,0.00013471,2]
[338295802,1726486231948,-150.0,0.00013472,2]
[338295803,1726486231958,-449.61,0.00013472,2]
[338295804,1726486231967,-150.99,0.00013472,2]
[338295805,1726486231976,-109.44054983,0.00013473,2]
[338295808,1726486232359,-140.55945017,0.00013473,2]
[338295809,1726486232369,-170.47,0.00013479,2]
[338295810,1726486232378,-767.49071284,0.00013479,2]
[338295811,1726486232390,-2656.84928716,0.00013479,2]
[338295813,1726486232400,-170.51,0.00013499,2]
[338295814,1726486232409,-154.48,0.00013504,2]
[338295816,1726486232418,-150.0,0.00013517,2]
[338295817,1726486232428,-200.0,0.00013518,2]
[338295818,1726486232439,-1728.77,0.00013518,2]
[338295819,1726486232448,-7235.86,0.00013518,2]
[338295820,1726486232458,-499.99,0.00013518,2]
[338295821,1726486232472,-206.26,0.00013518,2]
[338295822,1726486232481,-2935.89,0.00013528,2]
[338295823,1726486232491,-1665.99541,0.00013529,2]
[338295824,1726486232501,-1115.92,0.00013583,2]
[338295825,1726486232511,-150.0,0.0001366,2]
[338295826,1726486232521,-5620.19723048,0.0001368,2]
[338295827,1726486232530,-2520.97172484,0.00013689,2]
[338295828,1726486232540,-150.0,0.00013699,2]
[338295829,1726486232549,-17211.65,0.00013699,2]
[338295830,1726486232559,-1720.43,0.00013699,2]
[338295831,1726486232568,-426.65,0.00013819,2]
[338295832,1726486232578,-150.0,0.00014029,2]
[338295833,1726486232588,-150.0,0.00014059,2]
[338295834,1726486232597,-195.92,0.00014089,2]
[338295835,1726486232606,-1720.0,0.000141,2]
[338295836,1726486232615,-557.392,0.00014139,2]
[338295837,1726486232625,-1991.318,0.00014139,2]
[338295838,1726486232635,-1921.0,0.00014139,2]
[338295839,1726486232644,-252.647,0.00014139,2]
[338295840,1726486232653,-3343.0,0.00014139,2]
[338295841,1726486232662,-812.0,0.00014139,2]
[338295842,1726486232671,-1079.0,0.00014139,2]
[338295843,1726486232681,-1261.0,0.00014139,2]
[338295844,1726486232691,-5952.266,0.00014139,2]
[338295845,1726486232700,-638.514,0.00014139,2]
[338295846,1726486232710,-1552.977,0.00014139,2]
[338295847,1726486232719,-448.0,0.00014139,2]
[338295848,1726486232728,-247.291,0.00014139,2]
[338295849,1726486232739,-364.604782,0.00014239,2]
[338295850,1726486232749,-150.0,0.00014398,2]
[338295851,1726486232759,-3056.0212,0.00014404,2]
[338295852,1726486232769,-364.604782,0.00014417,2]
[338295853,1726486232779,-150.0,0.0001442,2]
[338295854,1726486232788,-385.35854651,0.000145,2]
[338295855,1726486232798,-1665.99542,0.0001457,2]
[338295856,1726486232807,-770.54408519,0.00014594,2]
[338295857,1726486232817,-364.604782,0.00014595,2]
[338295858,1726486232826,-150.0,0.00014632,2]
[338295859,1726486232835,-150.0,0.00014632,2]
[338295860,1726486232844,-162.83837,0.00014632,2]
[338295861,1726486232853,-153.83115,0.00014632,2]
[338295862,1726486232863,-500.0,0.00014676,2]
[338295863,1726486232872,-200.0,0.00014676,2]
[338295864,1726486232882,-1000.0,0.00014676,2]
[338295865,1726486232891,-1000.0,0.00014676,2]
[338295866,1726486232901,-151.0,0.00014676,2]
[338295867,1726486232920,-151.0,0.00014676,2]
[338295868,1726486232930,-451.775158,0.00014676,2]
[338295869,1726486232940,-451.775158,0.00014676,2]
[338295870,1726486232950,-169.949741,0.00014676,2]
[338295871,1726486232959,-169.949741,0.00014676,2]
[338295872,1726486232968,-151.0,0.00014676,2]
[338295873,1726486232978,-151.0,0.00014676,2]
[338295874,1726486232990,-151.0,0.00014676,2]
[338295875,1726486233000,-151.0,0.00014676,2]
[338295876,1726486233009,-152.353364,0.00014676,2]
[338295877,1726486233019,-151.0,0.00014676,2]
[338295878,1726486233029,-1580.79778628,0.0001468,2]
[338295879,1726486233039,-295.114072,0.0001468,2]
[338295880,1726486233048,-295.114072,0.0001468,2]
[338295881,1726486233059,-4177.048,0.00014684,2]
[338295882,1726486233069,-936.95708098,0.00014689,2]
[338295883,1726486233079,-1000.0,0.00014689,2]
[338295884,1726486233090,-1000.0,0.00014689,2]
[338295885,1726486233100,-151.0,0.00014689,2]
[338295886,1726486233110,-151.0,0.00014689,2]
[338295887,1726486233121,-451.775158,0.00014689,2]
[338295888,1726486233130,-451.775158,0.00014689,2]
[338295889,1726486233140,-169.949741,0.00014689,2]
[338295890,1726486233150,-169.949741,0.00014689,2]
[338295891,1726486233160,-295.114072,0.00014689,2]
[338295892,1726486233170,-295.114072,0.00014689,2]
[338295893,1726486233179,-151.0,0.00014689,2]
[338295894,1726486233189,-151.0,0.00014689,2]
[338295895,1726486233199,-151.0,0.00014689,2]
[338295896,1726486233209,-151.0,0.00014689,2]
[338295897,1726486233219,-151.0,0.00014689,2]
[338295898,1726486233229,-151.0,0.00014689,2]
[338295899,1726486233239,-151.0,0.00014689,2]
[338295900,1726486233249,-475.7053,0.00014689,2]
[338295901,1726486233258,-690.0699,0.00014689,2]
[338295902,1726486233268,-196.6822,0.00014689,2]
[338295903,1726486233277,-11061.4653,0.00014689,2]
[338295904,1726486233287,-196.4671,0.00014689,2]
[338295905,1726486233296,-7932.4662,0.00014689,2]
[338295906,1726486233306,-1000.0,0.00014689,2]
[338295907,1726486233315,-1000.0,0.00014689,2]
[338295908,1726486233325,-2500.0,0.00014689,2]
[338295909,1726486233334,-168.48175141,0.00014694,2]
[338295910,1726486233344,-198.13369889,0.00014694,2]
[338295911,1726486233354,-156.48864054,0.00014694,2]
[338295912,1726486233363,-327.64903323,0.00014694,2]
[338295913,1726486233373,-270.86462049,0.00014694,2]
[338295914,1726486233382,-1580.79778619,0.00014704,2]
[338295915,1726486233392,-150.0,0.00014715,2]
[338295916,1726486233402,-198.13369887,0.00014723,2]
[338295917,1726486233411,-1580.79778619,0.00014729,2]
[338295918,1726486233420,-151.0,0.00014729,2]
[338295919,1726486233429,-151.0,0.00014729,2]
[338295920,1726486233439,-151.0,0.00014729,2]
[338295921,1726486233449,-151.0,0.00014729,2]
[338295922,1726486233458,-151.0,0.00014729,2]
[338295923,1726486233471,-500.0,0.00014732,2]
[338295924,1726486233480,-500.0,0.00014732,2]
[338295925,1726486233493,-500.0,0.00014741,2]
[338295926,1726486233503,-500.0,0.00014741,2]
[338295927,1726486233513,-500.0,0.00014741,2]
[338295928,1726486233522,-150.0,0.00014749,2]
[338295929,1726486233532,-500.0,0.0001475,2]
[338295930,1726486233543,-500.0,0.0001475,2]
[338295931,1726486233553,-500.0,0.0001475,2]
[338295932,1726486233562,-151.0,0.0001475,2]
[338295933,1726486233571,-151.0,0.0001475,2]
[338295934,1726486233581,-198.13369887,0.00014753,2]
[338295935,1726486233590,-1580.79778619,0.00014753,2]
[338295936,1726486233600,-1500.0,0.00014755,2]
[338295937,1726486233609,-500.0,0.00014759,2]
[338295938,1726486233620,-500.0,0.00014759,2]
[338295939,1726486233630,-500.0,0.00014759,2]
[338295940,1726486233640,-1000.0,0.00014759,2]
[338295941,1726486233650,-1000.0,0.00014759,2]
[338295942,1726486233659,-151.0,0.00014759,2]
[338295943,1726486233668,-151.0,0.00014759,2]
[338295944,1726486233678,-451.775158,0.00014759,2]
[338295945,1726486233687,-451.775158,0.00014759,2]
[338295946,1726486233697,-169.949741,0.00014759,2]
[338295947,1726486233707,-169.949741,0.00014759,2]
[338295948,1726486233716,-295.114072,0.00014759,2]
[338295949,1726486233726,-295.114072,0.00014759,2]
[338295950,1726486233737,-156.48864051,0.00014763,2]
[338295951,1726486233747,-327.64903321,0.00014763,2]
[338295952,1726486233756,-420.0,0.00014766,2]
[338295953,1726486233767,-150.0,0.00014767,2]
[338295954,1726486233777,-500.0,0.00014768,2]
[338295955,1726486233787,-500.0,0.00014768,2]
[338295956,1726486233796,-500.0,0.00014768,2]
[338295957,1726486233806,-598.75396491,0.00014773,2]
[338295958,1726486233815,-160.031296,0.00014773,2]
[338295959,1726486233825,-364.604782,0.00014773,2]
[338295960,1726486233835,-500.0,0.00014776,2]
[338295961,1726486233845,-500.0,0.00014776,2]
[338295962,1726486233855,-500.0,0.00014776,2]
[338295963,1726486233865,-1580.79778619,0.00014778,2]
[338295964,1726486233875,-300.02,0.00014779,2]
[338295965,1726486233884,-8405.66584511,0.00014779,2]
[338295966,1726486233894,-151.0,0.00014779,2]
[338295967,1726486233903,-151.0,0.00014779,2]
[338295968,1726486233913,-151.0,0.00014779,2]
[338295969,1726486233922,-151.0,0.00014779,2]
[338295970,1726486233932,-151.0,0.00014779,2]
[338295971,1726486233942,-151.0,0.00014779,2]
[338295972,1726486233951,-235786.13467027,0.0001478,2]
[338295973,1726486233961,-10770.0,0.0001478,2]
[338295974,1726486233971,-150.0,0.0001478,2]
[338295975,1726486233981,-198.13369887,0.00014782,2]
[338295976,1726486233990,-150.0,0.00014783,2]
[338295977,1726486234000,-972.37157496,0.00014784,2]
[338295978,1726486234010,-152.25,0.00014784,2]
[338295979,1726486234019,-255.8274404,0.00014784,2]
[338295980,1726486234029,-255.8274404,0.00014784,2]
[338295981,1726486234038,-255.8274404,0.00014784,2]
[338295982,1726486234048,-150.0,0.00014784,2]
[338295983,1726486234057,-500.0,0.00014785,2]
[338295984,1726486234067,-500.0,0.00014785,2]
[338295985,1726486234076,-500.0,0.00014785,2]
[338295986,1726486234086,-1700.0,0.00014787,2]
[338295987,1726486234095,-1000.0,0.00014787,2]
[338295988,1726486234105,-1000.0,0.00014787,2]
[338295989,1726486234115,-151.0,0.00014787,2]
[338295990,1726486234124,-151.0,0.00014787,2]
[338295991,1726486234134,-451.775158,0.00014787,2]
[338295992,1726486234145,-451.775158,0.00014787,2]
[338295993,1726486234155,-169.949741,0.00014787,2]
[338295994,1726486234165,-169.949741,0.00014787,2]
[338295995,1726486234175,-295.114072,0.00014787,2]
[338295996,1726486234184,-295.114072,0.00014787,2]
[338295997,1726486234193,-108763.53145708,0.00014789,2]
[338295998,1726486234203,-1000.0,0.00014789,2]
[338295999,1726486234213,-1000.0,0.00014789,2]
[338296000,1726486234222,-151.0,0.00014789,2]
[338296001,1726486234231,-265.360679,0.00014789,2]
[338296002,1726486234243,-451.775158,0.00014789,2]
[338296003,1726486234252,-451.775158,0.00014789,2]
[338296004,1726486234262,-169.949741,0.00014789,2]
[338296005,1726486234273,-169.949741,0.00014789,2]
[338296006,1726486234282,-295.114072,0.00014789,2]
[338296007,1726486234292,-295.114072,0.00014789,2]
[338296008,1726486234302,-158.937306,0.00014789,2]
[338296009,1726486234311,-151.0,0.00014789,2]
[338296010,1726486234321,-151.0,0.00014789,2]
[338296011,1726486234330,-151.0,0.00014789,2]
[338296012,1726486234340,-151.0,0.00014789,2]
[338296013,1726486234349,-500.0,0.00014793,2]
[338296014,1726486234358,-500.0,0.00014793,2]
[338296015,1726486234368,-456.99543288,0.00014793,2]
[338296016,1726486234377,-554.0,0.00014794,2]
[338296017,1726486234387,-4061.17479742,0.00014794,2]
[338296018,1726486234396,-194.41318907,0.00014794,2]
[338296019,1726486234406,-638.61,0.00014794,2]
[338296020,1726486234415,-623.61,0.00014794,2]
[338296021,1726486234425,-927.9,0.00014794,2]
[338296022,1726486234434,-638.61,0.00014794,2]
[338296023,1726486234444,-927.9,0.00014794,2]
[338296024,1726486234454,-638.61,0.00014794,2]
[338296025,1726486234464,-927.9,0.00014794,2]
[338296026,1726486234474,-638.61,0.00014794,2]
[338296027,1726486234487,-927.9,0.00014794,2]
[338296028,1726486234497,-638.61,0.00014794,2]
[338296029,1726486234506,-638.61,0.00014794,2]
[338296030,1726486234516,-927.9,0.00014794,2]
[338296031,1726486234526,-927.9,0.00014794,2]
[338296032,1726486234536,-638.61,0.00014794,2]
[338296033,1726486234545,-928.07945925,0.00014794,2]
[338296034,1726486234555,-638.61,0.00014794,2]
[338296035,1726486234564,-638.61,0.00014794,2]
[338296036,1726486234573,-638.61,0.00014794,2]
[338296037,1726486234583,-638.61,0.00014794,2]
[338296038,1726486234593,-638.61,0.00014794,2]
[338296039,1726486234603,-638.61,0.00014794,2]
[338296040,1726486234613,-2043.1,0.00014794,2]
[338296041,1726486234623,-638.61,0.00014794,2]
[338296042,1726486234632,-2043.1,0.00014794,2]
[338296043,1726486234641,-2043.1,0.00014794,2]
[338296044,1726486234879,-2043.1,0.00014794,2]
[338296045,1726486234888,-2043.1,0.00014794,2]
[338296046,1726486234898,-2043.1,0.00014794,2]
[338296047,1726486234908,-2043.1,0.00014794,2]
[338296048,1726486234917,-2043.1,0.00014794,2]
[338296049,1726486234927,-2043.1,0.00014794,2]
[338296050,1726486234936,-2043.1,0.00014794,2]
[338296051,1726486234945,-2043.1,0.00014794,2]
[338296052,1726486234955,-2043.1,0.00014794,2]
[338296053,1726486234964,-2043.1,0.00014794,2]
[338296054,1726486234974,-2043.1,0.00014794,2]
[338296055,1726486234983,-2043.1,0.00014794,2]
[338296056,1726486234992,-2043.1,0.00014794,2]
[338296057,1726486235002,-2043.1,0.00014794,2]
[338296058,1726486235012,-2043.1,0.00014794,2]
[338296059,1726486235021,-2043.1,0.00014794,2]
[338296060,1726486235030,-2043.1,0.00014794,2]
[338296061,1726486235040,-2043.1,0.00014794,2]
[338296062,1726486235050,-2043.1,0.00014794,2]
[338296063,1726486235059,-2043.1,0.00014794,2]
[338296064,1726486235069,-2043.15148553,0.00014794,2]
[338296065,1726486235078,-500.0,0.00014794,2]
[338296066,1726486235088,-500.0,0.00014794,2]
[338296067,1726486235097,-500.0,0.00014794,2]
[338296068,1726486235106,-500.0,0.00014794,2]
[338296069,1726486235116,-500.0,0.00014794,2]
[338296070,1726486235125,-500.0,0.00014794,2]
[338296071,1726486235135,-500.0,0.00014794,2]
[338296072,1726486235144,-500.0,0.00014794,2]
[338296073,1726486235153,-500.0,0.00014794,2]
[338296074,1726486235163,-500.0,0.00014794,2]
[338296075,1726486235173,-500.0,0.00014794,2]
[338296076,1726486235182,-1304.99,0.00014794,2]
[338296077,1726486235192,-500.0,0.00014794,2]
[338296078,1726486235201,-1304.99,0.00014794,2]
[338296079,1726486235211,-500.0,0.00014794,2]
[338296080,1726486235220,-500.0,0.00014794,2]
[338296081,1726486235229,-500.0,0.00014794,2]
[338296082,1726486235240,-1304.99,0.00014794,2]
[338296083,1726486235249,-500.0,0.00014794,2]
[338296084,1726486235258,-1304.99,0.00014794,2]